fUSD/lending_fUSD_20250327
["ID","MTS","AMOUNT","RATE_DAILY","PERIOD"]
[356723686,1743035444068,-151.0,0.00041085,14]
[356723687,1743035444077,-151.0,0.00041085,14]
[356723688,1743035444086,-151.0,0.00041085,14]
[356723689,1743035444095,-151.0,0.00041085,14]
[356723690,1743035444104,-151.0,0.00041085,14]
[356723691,1743035444114,-151.0,0.00041085,14]
[356723692,1743035444123,-164.828568,0.00041085,14]
[356723693,1743035444132,-164.828568,0.00041085,14]
[356723694,1743035444142,-1558.28352,0.00041085,14]
[356723695,1743035444151,-413.696039,0.00041085,14]
[356723696,1743035444160,-413.696039,0.00041085,14]
[356723697,1743035444169,-341.279692,0.00041085,14]
[356723698,1743035444178,-341.279692,0.00041085,14]
[356723699,1743035444187,-151.0,0.00041085,14]
[356723700,1743035444196,-151.0,0.00041085,14]
[356723701,1743035444206,-500.0,0.00041095,30]
[356723702,1743035444215,-500.0,0.00041095,30]
[356723703,1743035444224,-500.0,0.00041095,30]
[356723704,1743035444234,-500.0,0.00041095,30]
[356723705,1743035444243,-505.23034849,0.00041095,30]
[356723706,1743035444252,-500.0,0.00041095,30]
[356723707,1743035444261,-504.5742394,0.00041095,30]
[356723708,1743035444271,-513.93496955,0.00041095,30]
[356723709,1743035444280,-500.0,0.00041095,30]
[356723710,1743035444290,-500.0,0.00041095,30]
[356723711,1743035444300,-500.0,0.00041095,30]
[356723712,1743035444309,-500.0,0.00041095,30]
[356723713,1743035444319,-500.0,0.00041095,30]
[356723714,1743035444328,-500.0,0.00041095,30]
[356723715,1743035444337,-500.0,0.00041095,30]
[356723716,1743035444346,-500.0,0.00041095,30]
[356723717,1743035444355,-500.0,0.00041095,30]
[356723718,1743035444365,-500.0,0.00041095,30]
[356723719,1743035444375,-500.0,0.00041095,30]
[356723720,1743035444384,-500.0,0.00041095,30]
[356723721,1743035444393,-500.0,0.00041095,30]
[356723722,1743035444402,-500.0,0.00041095,30]
[356723723,1743035444411,-500.0,0.00041095,30]
[356723724,1743035444421,-522.05325521,0.00041095,30]
[356723725,1743035444430,-478.42573564,0.00041095,2]
[356723726,1743035444440,-500.0,0.00041095,30]
[356723727,1743035444450,-500.0,0.00041095,15]
[356723728,1743035444459,-500.0,0.00041095,30]
[356723729,1743035444469,-500.0,0.00041095,30]
[356723730,1743035444478,-500.0,0.00041095,30]
[356723731,1743035444487,-500.0,0.00041095,30]
[356723732,1743035444497,-500.0,0.00041095,30]
[356723733,1743035444507,-500.0,0.00041095,30]
[356723734,1743035444516,-500.0,0.00041095,30]
[356723735,1743035444526,-500.0,0.00041095,30]
[356723736,1743035444535,-500.0,0.00041095,30]
[356723737,1743035444544,-189.1505116,0.00041095,30]
[356723738,1743035444554,-500.0,0.00041095,30]
[356723739,1743035444563,-500.0,0.00041095,30]
[356723740,1743035444573,-500.0,0.00041095,30]
[356723741,1743035444582,-500.0,0.00041095,30]
[356723742,1743035444713,-500.0,0.00041095,30]
[356723743,1743035444723,-425.66925003,0.00041095,30]
[356723744,1743035444732,-500.0,0.00041095,30]
[356723745,1743035444742,-500.0,0.00041095,30]
[356723746,1743035444751,-500.0,0.00041095,30]
[356723747,1743035444760,-500.0,0.00041095,30]
[356723748,1743035444769,-500.0,0.00041095,30]
[356723749,1743035444779,-500.0,0.00041095,30]
[356723750,1743035444787,-500.0,0.00041095,30]
[356723751,1743035444797,-500.0,0.00041095,30]
[356723752,1743035444806,-500.0,0.00041095,30]
[356723753,1743035444815,-500.0,0.00041095,30]
[356723754,1743035444824,-1500.0,0.00041095,30]
[356723755,1743035444833,-500.0,0.00041095,30]
[356723756,1743035444842,-500.0,0.00041095,30]
[356723757,1743035444852,-500.0,0.00041095,30]
[356723758,1743035444863,-500.0,0.00041095,30]
[356723759,1743035444872,-500.0,0.00041095,30]
[356723760,1743035444881,-500.0,0.00041095,30]
[356723761,1743035444890,-500.0,0.00041095,30]
[356723762,1743035444899,-500.0,0.00041095,30]
[356723763,1743035444908,-500.0,0.00041095,30]
[356723764,1743035444918,-500.0,0.00041095,30]
[356723765,1743035444927,-500.0,0.00041095,30]
[356723766,1743035444936,-500.0,0.00041095,30]
[356723767,1743035444945,-500.0,0.00041095,30]
[356723768,1743035444954,-548.6691597,0.00041095,30]
[356723769,1743035444963,-500.0,0.00041095,30]
[356723770,1743035444972,-500.0,0.00041095,30]
[356723771,1743035444982,-500.0,0.00041095,30]
[356723772,1743035444991,-519.48086414,0.00041095,30]
[356723773,1743035445000,-500.0,0.00041095,30]
[356723774,1743035445009,-571.8801088,0.00041095,30]
[356723775,1743035445019,-500.0,0.00041095,30]
[356723776,1743035445028,-500.0,0.00041095,30]
[356723777,1743035445038,-500.0,0.00041095,30]
[356723778,1743035445047,-500.0,0.00041095,30]
[356723779,1743035445056,-500.0,0.00041095,30]
[356723780,1743035445066,-500.0,0.00041095,30]
[356723781,1743035445075,-500.0,0.00041095,30]
[356723782,1743035445084,-535.92024584,0.00041095,30]
[356723783,1743035445094,-500.0,0.00041095,30]
[356723784,1743035445103,-611.5322129,0.00041095,30]
[356723785,1743035445112,-500.0,0.00041095,30]
[356723786,1743035445122,-500.0,0.00041095,30]
[356723787,1743035445131,-500.0,0.00041095,30]
[356723788,1743035445141,-500.0,0.00041095,30]
[356723789,1743035445151,-500.0,0.00041095,30]
[356723790,1743035445160,-500.0,0.00041095,30]
[356723791,1743035445169,-500.0,0.00041095,30]
[356723792,1743035445178,-500.0,0.00041095,30]
[356723793,1743035445188,-500.0,0.00041095,30]
[356723794,1743035445197,-500.0,0.00041095,30]
[356723795,1743035445207,-500.0,0.00041095,30]
[356723796,1743035445217,-500.0,0.00041095,30]
[356723797,1743035445226,-532.3585093,0.00041095,30]
[356723798,1743035445236,-151.0,0.00041095,14]
[356723799,1743035445245,-500.0,0.00041095,30]
[356723800,1743035445255,-151.0,0.00041095,14]
[356723801,1743035445264,-505.52900637,0.00041095,2]
[356723802,1743035445274,-500.0,0.00041095,30]
[356723803,1743035445285,-500.0,0.00041095,30]
[356723804,1743035445294,-500.0,0.00041095,30]
[356723805,1743035445304,-500.0,0.00041095,30]
[356723806,1743035445314,-532.79315405,0.00041095,30]
[356723807,1743035445324,-1177.47,0.00041095,2]
[356723808,1743035445333,-381.72745996,0.00041095,30]
[356723809,1743035445343,-514.66971437,0.00041095,30]
[356723810,1743035445352,-577.95640877,0.00041095,30]
[356723811,1743035445362,-500.0,0.00041095,30]
[356723812,1743035445372,-508.87335873,0.00041095,30]
[356723813,1743035445381,-517.30449153,0.00041095,30]
[356723814,1743035445391,-500.0,0.00041095,30]
[356723815,1743035445400,-500.0,0.00041095,30]
[356723816,1743035445409,-500.0,0.00041095,30]
[356723817,1743035445418,-151.0,0.00041095,14]
[356723818,1743035445428,-501.29563371,0.00041095,2]
[356723819,1743035445437,-500.0,0.00041095,2]
[356723820,1743035445446,-500.0,0.00041095,30]
[356723821,1743035445455,-500.0,0.00041095,30]
[356723822,1743035445464,-645.7,0.00041095,30]
[356723823,1743035445474,-500.0,0.00041095,30]
[356723824,1743035445483,-368.36503181,0.00041095,30]
[356723825,1743035445492,-500.0,0.00041095,30]
[356723826,1743035445501,-500.0,0.00041095,30]
[356723827,1743035445511,-151.0,0.00041095,14]
[356723828,1743035445521,-500.0,0.00041095,30]
[356723829,1743035445531,-500.0,0.00041095,30]
[356723830,1743035445541,-500.0,0.00041095,30]
[356723831,1743035445550,-588.40510152,0.00041095,30]
[356723832,1743035445560,-500.0,0.00041095,30]
[356723833,1743035445570,-500.0,0.00041095,30]
[356723834,1743035445579,-505.06137747,0.00041095,30]
[356723835,1743035445589,-500.0,0.00041095,30]
[356723836,1743035445598,-500.0,0.00041095,30]
[356723837,1743035445608,-500.0,0.00041095,30]
[356723838,1743035445617,-500.0,0.00041095,30]
[356723839,1743035445627,-613.35882446,0.00041095,30]
[356723840,1743035445640,-500.0,0.00041095,30]
[356723841,1743035445650,-500.0,0.00041095,30]
[356723842,1743035445659,-500.0,0.00041095,30]
[356723843,1743035445668,-540.99381754,0.00041095,30]
[356723844,1743035445679,-500.0,0.00041095,30]
[356723845,1743035445688,-500.0,0.00041095,30]
[356723846,1743035445697,-507.6809171,0.00041095,30]
[356723847,1743035445707,-500.0,0.00041095,30]
[356723848,1743035445716,-500.0,0.00041095,30]
[356723849,1743035445725,-500.0,0.00041095,30]
[356723850,1743035445734,-500.0,0.00041095,30]
[356723851,1743035445743,-510.15897088,0.00041095,30]
[356723852,1743035445753,-569.71223392,0.00041095,30]
[356723853,1743035445763,-500.0,0.00041095,30]
[356723854,1743035445772,-534.40248749,0.00041095,30]
[356723855,1743035445782,-222.78739707,0.00041095,30]
[356723856,1743035445792,-556.49327262,0.00041095,30]
[356723857,1743035445801,-571.78713818,0.00041095,30]
[356723858,1743035445811,-500.0,0.00041095,30]
[356723859,1743035445821,-526.11141264,0.00041095,30]
[356723860,1743035445832,-500.0,0.00041095,30]
[356723861,1743035445842,-582.9088559,0.00041095,30]
[356723862,1743035445851,-500.0,0.00041095,30]
[356723863,1743035445861,-581.77973949,0.00041095,30]
[356723864,1743035445871,-500.0,0.00041095,30]
[356723865,1743035445881,-500.0,0.00041095,30]
[356723866,1743035445891,-500.0,0.00041095,30]
[356723867,1743035445900,-537.49254706,0.00041095,30]
[356723868,1743035445912,-500.0,0.00041095,30]
[356723869,1743035445922,-566.8998955,0.00041095,30]
[356723870,1743035445931,-500.0,0.00041095,30]
[356723871,1743035445941,-500.0,0.00041095,30]
[356723872,1743035445951,-574.29721337,0.00041095,30]
[356723873,1743035445960,-618.54665921,0.00041095,30]
[356723874,1743035445970,-500.0,0.00041095,30]
[356723875,1743035445980,-500.0,0.00041095,30]
[356723876,1743035445990,-546.89737464,0.00041095,30]
[356723877,1743035446000,-500.0,0.00041095,30]
[356723878,1743035446009,-609.56376205,0.00041095,30]
[356723879,1743035446020,-573.02387966,0.00041095,30]
[356723880,1743035446029,-500.0,0.00041095,30]
[356723881,1743035446039,-500.0,0.00041095,30]
[356723882,1743035446048,-551.39879824,0.00041095,30]
[356723883,1743035446058,-500.0,0.00041095,30]
[356723884,1743035446067,-612.20450314,0.00041095,30]
[356723885,1743035446077,-500.0,0.00041095,30]
[356723886,1743035446087,-566.08163041,0.00041095,30]
[356723887,1743035446096,-555.49080258,0.00041095,30]
[356723888,1743035446106,-500.0,0.00041095,30]
[356723889,1743035446117,-500.0,0.00041095,30]
[356723890,1743035446126,-500.0,0.00041095,30]
[356723891,1743035446135,-500.0,0.00041095,30]
[356723892,1743035446145,-573.40407382,0.00041095,30]
[356723893,1743035446155,-505.35485505,0.00041095,30]
[356723895,1743035446165,-579.69702788,0.00041095,30]
[356723897,1743035446175,-631.55572343,0.00041095,30]
[356723898,1743035446184,-578.36680248,0.00041095,30]
[356723900,1743035446194,-500.0,0.00041095,30]
[356723901,1743035446203,-517.8065224,0.00041095,30]
[356723902,1743035446213,-572.1922874,0.00041095,30]
[356723903,1743035446223,-560.98501443,0.00041095,30]
[356723904,1743035446232,-508.79063068,0.00041095,30]
[356723905,1743035446242,-572.86623699,0.00041095,30]
[356723906,1743035446252,-441.58980931,0.00041095,30]
[356723907,1743035446263,-538.82880652,0.00041095,30]
[356723908,1743035446273,-500.0,0.00041095,30]
[356723909,1743035446282,-549.89312391,0.00041095,30]
[356723910,1743035446292,-507.5131626,0.00041095,30]
[356723911,1743035446301,-500.0,0.00041095,30]
[356723912,1743035446311,-500.0,0.00041095,30]
[356723913,1743035446321,-506.38207022,0.00041095,30]
[356723914,1743035446331,-521.25093545,0.00041095,30]
[356723915,1743035446340,-511.62392667,0.00041095,30]
[356723916,1743035446350,-590.34042299,0.00041095,30]
[356723917,1743035446360,-500.0,0.00041095,30]
[356723918,1743035446370,-565.66613768,0.00041095,30]
[356723919,1743035446379,-813.39057249,0.00041095,18]
[356723920,1743035446389,-626.68455894,0.00041095,30]
[356723921,1743035446399,-500.0,0.00041095,30]
[356723922,1743035446408,-543.15095309,0.00041095,30]
[356723923,1743035446418,-563.32615451,0.00041095,30]
[356723924,1743035446427,-500.0,0.00041095,30]
[356723925,1743035446436,-500.0,0.00041095,30]
[356723926,1743035446445,-533.06615366,0.00041095,30]
[356723927,1743035446455,-613.48424942,0.00041095,30]
[356723928,1743035446465,-500.0,0.00041095,30]
[356723929,1743035446474,-508.9444082,0.00041095,30]
[356723930,1743035446483,-500.0,0.00041095,30]
[356723931,1743035446494,-500.0,0.00041095,30]
[356723932,1743035446503,-500.0,0.00041095,30]
[356723933,1743035446513,-568.3754992,0.00041095,30]
[356723934,1743035446522,-608.10422112,0.00041095,30]
[356723935,1743035446531,-543.15481286,0.00041095,30]
[356723936,1743035446541,-500.0,0.00041095,30]
[356723937,1743035446551,-500.0,0.00041095,2]
[356723938,1743035446560,-500.0,0.00041095,30]
[356723939,1743035446569,-500.0,0.00041095,30]
[356723940,1743035446579,-524.53222655,0.00041095,30]
[356723941,1743035446588,-536.85249483,0.00041095,30]
[356723942,1743035446597,-602.96835477,0.00041095,30]
[356723943,1743035446607,-632.57,0.00041095,30]
[356723944,1743035446617,-500.0,0.00041095,30]
[356723945,1743035446627,-549.28137856,0.00041095,30]
[356723946,1743035446641,-616.71633642,0.00041095,30]
[356723947,1743035446650,-268.06653308,0.00041095,30]
[356723948,1743035446699,-231.93346692,0.00041095,30]
[356723949,1743035446708,-43.43005759,0.00041095,30]
[356723950,1743035446901,-940.64329559,0.00025511,2]
[356723951,1743035446911,-151.0,0.0002614,7]
[356723952,1743035446920,-151.0,0.00026768,7]
[356723953,1743035446929,-151.0,0.00027297,7]
[356723954,1743035447053,-120.06658062,0.00041095,30]
[356723955,1743035447082,-606.28608372,0.00041095,30]
[356723956,1743035447092,-596.57713996,0.00041095,30]
[356723957,1743035447101,-384.61615089,0.00041095,30]
[356723958,1743035447132,-167.58935157,0.00041095,30]
[356723959,1743035447142,-617.82276327,0.00041095,30]
[356723960,1743035447151,-400.19888323,0.00041095,30]
[356723961,1743035447163,-99.80111677,0.00041095,30]
[356723962,1743035447172,-500.0,0.00041095,30]
[356723963,1743035447182,-297.05518191,0.00041095,30]
[356723964,1743035447194,-221.98529744,0.00041095,30]
[356723965,1743035447203,-516.57631005,0.00041095,30]
[356723966,1743035447213,-641.09670123,0.00041095,30]
[356723967,1743035447222,-500.0,0.00041095,30]
[356723968,1743035447232,-549.11678686,0.00041095,30]
[356723969,1743035447242,-619.68190578,0.00041095,30]
[356723970,1743035447251,-531.57227486,0.00041095,30]
[356723971,1743035447260,-152.325221,0.00041095,14]
[356723972,1743035447270,-157.817053,0.00041095,14]
[356723973,1743035447280,-573.01386679,0.00041095,30]
[356723974,1743035447290,-500.0,0.00041095,30]
[356723975,1743035447299,-586.59495587,0.00041095,30]
[356723976,1743035447309,-581.07323545,0.00041095,30]
[356723977,1743035447319,-518.22203354,0.00041095,30]
[356723978,1743035447328,-528.79538806,0.00041095,30]
[356723979,1743035447338,-151.0,0.00041095,14]
[356723980,1743035447347,-151.0,0.00041095,14]
[356723981,1743035447358,-151.0,0.00041095,14]
[356723982,1743035447368,-518.6174407,0.00041095,30]
[356723983,1743035447378,-500.0,0.00041095,30]
[356723984,1743035447387,-540.88064523,0.00041095,30]
[356723985,1743035447397,-500.0,0.00041095,30]
[356723986,1743035447407,-627.7667146,0.00041095,30]
[356723987,1743035447416,-500.0,0.00041095,30]
[356723988,1743035447427,-623.1155229,0.00041095,30]
[356723989,1743035447438,-500.0,0.00041095,30]
[356723990,1743035447449,-164.37799649,0.00041095,30]
[356723991,1743035447459,-500.0,0.00041095,30]
[356723992,1743035447469,-500.0,0.00041095,30]
[356723993,1743035447478,-156.14204158,0.00041095,30]
[356723994,1743035447487,-319.01772367,0.00041095,30]
[356723995,1743035447500,-180.98227633,0.00041095,30]
[356723996,1743035447510,-500.0,0.00041095,30]
[356723997,1743035447519,-500.0,0.00041095,30]
[356723998,1743035447529,-572.34609136,0.00041095,30]
[356723999,1743035447539,-151.0,0.00041095,14]
[356724000,1743035447548,-151.0,0.00041095,14]
[356724001,1743035447558,-151.0,0.00041095,14]
[356724002,1743035447568,-500.0,0.00041095,30]
[356724003,1743035447578,-162.986674,0.00041095,14]
[356724004,1743035447588,-153.699957,0.00041095,14]
[356724005,1743035447598,-500.0,0.00041095,30]
[356724006,1743035447608,-268.656668,0.00041095,14]
[356724007,1743035447619,-500.0,0.00041095,30]
[356724008,1743035447629,-500.0,0.00041095,30]
[356724009,1743035447643,-253.45723711,0.00041095,30]
[356724010,1743035447653,-168.37000702,0.00041095,30]
[356724011,1743035447663,-500.0,0.00041095,30]
[356724012,1743035447672,-500.0,0.00041095,30]
[356724013,1743035447682,-201.29024418,0.00041095,30]
[356724014,1743035447695,-298.70975582,0.00041095,30]
[356724015,1743035447705,-472.44262525,0.00041095,30]
[356724016,1743035447717,-27.55737475,0.00041095,30]
[356724017,1743035447726,-500.0,0.00041095,30]
[356724018,1743035447735,-500.0,0.00041095,30]
[356724019,1743035447744,-175.20193475,0.00041095,30]
[356724020,1743035447754,-500.0,0.00041095,30]
[356724021,1743035447764,-500.0,0.00041095,30]
[356724022,1743035447774,-500.0,0.00041095,30]
[356724023,1743035447784,-202.492404,0.00041095,14]
[356724024,1743035447794,-593.89164982,0.00041095,30]
[356724025,1743035447803,-502.87058041,0.00041095,30]
[356724026,1743035447813,-497.21082531,0.00041095,30]
[356724027,1743035447823,-500.0,0.00041095,30]
[356724028,1743035447833,-500.0,0.00041095,30]
[356724029,1743035447843,-500.0,0.00041095,30]
[356724030,1743035447852,-236.56679841,0.00041095,30]
[356724031,1743035447865,-263.43320159,0.00041095,30]
[356724032,1743035447875,-500.0,0.00041095,30]
[356724033,1743035447886,-151.0,0.00041095,14]
[356724034,1743035447897,-151.0,0.00041095,14]
[356724035,1743035447907,-151.0,0.00041095,14]
[356724036,1743035447916,-90.5830478,0.00041095,30]
[356724037,1743035447928,-409.4169522,0.00041095,30]
[356724038,1743035447938,-276.5830478,0.00041095,7]
[356724039,1743035447950,-233.79311557,0.00041095,7]
[356724040,1743035447961,-300.42878841,0.00041095,30]
[356724041,1743035447974,-199.57121159,0.00041095,30]
[356724042,1743035447983,-343.0979403,0.00041095,30]
[356724043,1743035447996,-156.9020597,0.00041095,30]
[356724044,1743035448006,-500.0,0.00041095,30]
[356724045,1743035448016,-408.30571644,0.00041095,30]
[356724046,1743035448026,-293.829993,0.00041095,14]
[356724047,1743035448037,-573.00352043,0.00041095,30]
[356724048,1743035448048,-500.0,0.00041095,30]
[356724049,1743035448059,-500.0,0.00041095,30]
[356724050,1743035448070,-500.0,0.00041095,30]
[356724051,1743035448080,-528.40968269,0.00041095,30]
[356724052,1743035448091,-500.0,0.00041095,30]
[356724053,1743035448102,-151.0,0.00041095,14]
[356724054,1743035448112,-151.0,0.00041095,14]
[356724055,1743035448122,-151.0,0.00041095,14]
[356724056,1743035448132,-500.0,0.00041095,30]
[356724057,1743035448142,-559.13413543,0.00041095,30]
[356724058,1743035448153,-500.0,0.00041095,30]
[356724059,1743035448163,-2000.0,0.00041095,2]
[356724060,1743035448173,-500.0,0.00041095,30]
[356724061,1743035448183,-500.0,0.00041095,30]
[356724062,1743035448194,-500.0,0.00041095,30]
[356724063,1743035448205,-500.0,0.00041095,10]
[356724064,1743035448216,-500.0,0.00041095,30]
[356724065,1743035448228,-531.74410982,0.00041095,30]
[356724066,1743035451401,-46.48291054,0.00041095,30]
[356724067,1743035451414,-500.0,0.00041095,30]
[356724068,1743035451427,-10495.96,0.00041095,30]
[356724069,1743035451440,-588.33171582,0.00041095,30]
[356724070,1743035451452,-500.0,0.00041095,30]
[356724071,1743035451463,-579.56962593,0.00041095,30]
[356724072,1743035451473,-500.0,0.00041095,30]
[356724073,1743035451483,-552.18804337,0.00041095,30]
[356724074,1743035451492,-500.0,0.00041095,30]
[356724075,1743035451501,-500.0,0.00041095,30]
[356724076,1743035451510,-500.0,0.00041095,30]
[356724077,1743035451519,-500.0,0.00041095,30]
[356724078,1743035451528,-500.0,0.00041095,30]
[356724079,1743035451537,-500.0,0.00041095,30]
[356724080,1743035451547,-500.0,0.00041095,30]
[356724081,1743035451556,-500.0,0.00041095,30]
[356724082,1743035451565,-513.7996807,0.00041095,30]
[356724083,1743035451574,-500.0,0.00041095,30]
[356724084,1743035451584,-500.0,0.00041095,30]
[356724085,1743035451593,-517.12248208,0.00041095,30]
[356724086,1743035451603,-516.41794672,0.00041095,30]
[356724087,1743035451612,-500.0,0.00041095,30]
[356724088,1743035451622,-500.0,0.00041095,30]
[356724089,1743035451632,-529.53404085,0.00041095,30]
[356724090,1743035451645,-2564.27,0.00041095,30]
[356724091,1743035451655,-500.0,0.00041095,30]
[356724092,1743035451664,-500.0,0.00041095,30]
[356724093,1743035451675,-529.49864605,0.00041095,30]
[356724094,1743035451685,-527.738138,0.00041095,30]
[356724095,1743035451695,-500.0,0.00041095,30]
[356724096,1743035451705,-500.0,0.00041095,30]
[356724097,1743035451717,-164.828568,0.00041095,14]
[356724098,1743035451938,-164.828568,0.00041095,14]
[356724099,1743035451966,-500.0,0.00041095,30]
[356724100,1743035451978,-164.828568,0.00041095,14]
[356724101,1743035451988,-500.0,0.00041095,30]
[356724102,1743035451998,-615.44193979,0.00041095,30]
[356724103,1743035452008,-500.0,0.00041095,30]
[356724104,1743035452018,-164.828568,0.00041095,14]
[356724105,1743035452027,-164.828568,0.00041095,14]
[356724106,1743035452036,-164.82857,0.00041095,14]
[356724107,1743035452047,-535.88193661,0.00041095,15]
[356724108,1743035452056,-549.50211263,0.00041095,30]
[356724109,1743035452066,-500.0,0.00041095,30]
[356724110,1743035452076,-518.18273143,0.00041095,30]
[356724111,1743035452085,-500.0,0.00041095,30]
[356724112,1743035452095,-325.4587626,0.00041095,30]
[356724113,1743035452104,-500.0,0.00041095,30]
[356724114,1743035452113,-500.0,0.00041095,30]
[356724115,1743035452123,-511.46577913,0.00041095,30]
[356724116,1743035452133,-500.0,0.00041095,30]
[356724117,1743035452142,-618.85213468,0.00041095,30]
[356724118,1743035452151,-529.80587945,0.00041095,30]
[356724119,1743035452160,-500.0,0.00041095,30]
[356724120,1743035452169,-500.0,0.00041095,30]
[356724121,1743035452178,-500.0,0.00041095,30]
[356724122,1743035452187,-530.94411818,0.00041095,30]
[356724123,1743035452196,-587.30381817,0.00041095,30]
[356724124,1743035452206,-500.0,0.00041095,30]
[356724125,1743035452214,-504.76506419,0.00041095,30]
[356724126,1743035452224,-630.03660219,0.00041095,30]
[356724127,1743035452233,-500.0,0.00041095,30]
[356724128,1743035452244,-515.47017357,0.00041095,30]
[356724129,1743035452253,-346.27980772,0.00041095,30]
[356724130,1743035452263,-515.143452,0.00041095,30]
[356724131,1743035452272,-509.1948054,0.00041095,30]
[356724132,1743035452283,-521.85933159,0.00041095,30]
[356724133,1743035452293,-514.84388698,0.00041095,30]
[356724134,1743035452302,-500.0,0.00041095,30]
[356724135,1743035452312,-500.0,0.00041095,30]
[356724136,1743035452322,-1558.28352,0.00041095,14]
[356724137,1743035452331,-511.30507198,0.00041095,30]
[356724138,1743035452341,-1558.28352,0.00041095,14]
[356724139,1743035452350,-1558.283515,0.00041095,14]
[356724140,1743035452360,-500.0,0.00041095,30]
[356724141,1743035452371,-413.696039,0.00041095,14]
[356724142,1743035452380,-413.696039,0.00041095,14]
[356724143,1743035452390,-528.55232686,0.00041095,30]
[356724144,1743035452399,-500.0,0.00041095,30]
[356724145,1743035452409,-413.696039,0.00041095,14]
[356724146,1743035452419,-500.0,0.00041095,30]
[356724147,1743035452428,-500.0,0.00041095,30]
[356724148,1743035452437,-542.18863498,0.00041095,30]
[356724149,1743035452447,-413.696039,0.00041095,14]
[356724150,1743035452456,-413.696039,0.00041095,14]
[356724151,1743035452466,-515.75501712,0.00041095,30]
[356724152,1743035452475,-500.0,0.00041095,30]
[356724153,1743035452484,-413.696035,0.00041095,14]
[356724154,1743035452494,-500.0,0.00041095,30]
[356724155,1743035452503,-514.76283243,0.00041095,30]
[356724156,1743035452513,-500.0,0.00041095,30]
[356724157,1743035452522,-505.93921696,0.00041095,30]
[356724158,1743035452531,-580.17835058,0.00041095,30]
[356724159,1743035452541,-500.0,0.00041095,30]
[356724160,1743035452551,-500.0,0.00041095,30]
[356724161,1743035452561,-509.78453392,0.00041095,30]
[356724162,1743035452570,-500.0,0.00041095,30]
[356724163,1743035452580,-524.69184749,0.00041095,30]
[356724164,1743035452589,-500.0,0.00041095,30]
[356724165,1743035452599,-565.74328398,0.00041095,30]
[356724166,1743035452608,-506.14514525,0.00041095,30]
[356724167,1743035452619,-500.0,0.00041095,30]
[356724168,1743035452629,-500.0,0.00041095,30]
[356724169,1743035452641,-500.0,0.00041095,30]
[356724170,1743035452650,-500.0,0.00041095,30]
[356724171,1743035452659,-500.0,0.00041095,30]
[356724172,1743035452669,-508.5984568,0.00041095,30]
[356724173,1743035452678,-500.0,0.00041095,30]
[356724174,1743035452688,-506.94813715,0.00041095,30]
[356724175,1743035452697,-500.0,0.00041095,30]
[356724176,1743035452707,-500.0,0.00041095,30]
[356724177,1743035452716,-553.10120468,0.00041095,30]
[356724178,1743035452726,-500.0,0.00041095,30]
[356724179,1743035452735,-500.0,0.00041095,30]
[356724180,1743035452744,-500.0,0.00041095,30]
[356724181,1743035452754,-341.279692,0.00041095,14]
[356724182,1743035452764,-341.279692,0.00041095,14]
[356724183,1743035452773,-500.0,0.00041095,30]
[356724184,1743035452783,-500.0,0.00041095,30]
[356724185,1743035452793,-341.279692,0.00041095,14]
[356724186,1743035452802,-512.56221359,0.00041095,30]
[356724187,1743035452812,-500.0,0.00041095,30]
[356724188,1743035452821,-500.0,0.00041095,30]